bitfinex/quotes_SOLUSD_20251125
["timestamp","ask_amount","ask_price","bid_price","bid_amount"]
[1764081996222,6.14492956,134.48,134.43,6.14492956]
[1764081996392,6.14492956,134.45,134.41,0.1]
[1764081996717,7.43826242,134.44,134.41,0.1]
[1764081996926,0.67,134.44,134.41,6.24492956]
[1764081997095,3.42,134.45,134.43,6.14492956]
[1764081997292,3.42,134.45,134.44,6.14492956]
[1764081997528,3.42,134.45,134.43,6.14492956]
[1764081997714,7.43693857,134.47,134.44,6.14492956]
[1764081997915,4.09,134.48,134.44,6.14492956]
[1764081997916,11.5260515,134.48,134.44,6.14492956]
[1764081998222,3.42,134.48,134.46,6.14492956]
[1764081998425,0.67,134.47,134.41,0.1]
[1764081998722,8.10679396,134.47,134.43,6.14492956]
[1764081999023,8.10679396,134.47,134.44,6.14492956]
[1764081999204,0.67,134.47,134.45,6.14492956]
[1764081999406,8.10667946,134.47,134.44,6.14492956]
[1764081999616,14.25160902,134.47,134.41,0.1]
[1764081999827,26.69818685,134.47,134.43,6.14492956]
[1764081999999,6.81492956,134.46,134.41,6.24492956]
[1764082000325,6.14492956,134.45,134.41,6.24492956]
[1764082000525,17.00319198,134.44,134.41,0.1]
[1764082000711,36.26884803,134.44,134.41,0.1]
[1764082000919,0.67,134.43,134.41,0.1]
[1764082001424,6.81492956,134.43,134.41,0.1]
[1764082001632,0.67,134.42,134.41,0.1]
[1764082001803,0.67,134.49,134.41,6.24492956]
[1764082002002,3.42,134.48,134.41,0.1]
[1764082002197,3.42,134.48,134.46,6.14492956]
[1764082002708,6.14492956,134.51,134.47,6.14492956]
[1764082002709,3.42,134.51,134.47,6.14492956]
[1764082003026,6.81492956,134.5,134.45,6.14492956]
[1764082003218,3.42,134.51,134.42,26.03779199]
[1764082003521,3.42,134.51,134.42,79.54350169]
[1764082003726,10.85440373,134.51,134.47,6.14492956]
[1764082003914,6.81492956,134.5,134.45,6.14492956]
[1764082004312,0.67,134.49,134.46,6.14492956]
[1764082004718,8.10550334,134.49,134.45,6.14492956]
[1764082004934,14.2504329,134.49,134.43,6.14492956]
[1764082005119,6.81492956,134.48,134.43,6.14492956]
[1764082005319,0.67,134.48,134.44,6.14492956]
[1764082005717,9.56492956,134.51,134.45,6.14492956]
[1764082005920,0.67,134.5,134.45,6.14492956]
[1764082006111,6.81492956,134.5,134.41,26.13931407]
[1764082006534,13.58097953,134.48,134.41,0.1]
[1764082006747,13.58097953,134.48,134.43,6.14492956]
[1764082007037,6.81492956,134.47,134.42,6.14492956]
[1764082007207,0.67,134.47,134.42,6.14492956]
[1764082007542,6.14492956,134.45,134.41,0.1]
[1764082007725,4.09,134.47,134.42,6.14492956]
[1764082007922,3.42,134.47,134.44,6.14492956]
[1764082008320,6.14492956,134.45,134.41,0.1]
[1764082008523,0.67,134.44,134.41,0.1]
[1764082008914,4.09,134.46,134.41,6.24492956]
[1764082009128,6.81492956,134.45,134.41,0.1]
[1764082009331,0.67,134.45,134.41,0.1]
[1764082009532,0.67,134.44,134.41,0.1]
[1764082009842,0.67,134.45,134.41,6.24492956]
[1764082010347,0.67,134.45,134.41,0.1]
[1764082010516,7.43826242,134.44,134.41,0.1]
[1764082011037,8.10826242,134.44,134.41,0.1]
[1764082011247,0.67,134.44,134.41,0.1]
[1764082011442,0.67,134.43,134.41,0.1]
[1764082012114,6.81492956,134.43,134.41,0.1]
[1764082012622,6.81492956,134.42,134.41,0.1]
[1764082012831,0.67,134.42,134.41,0.1]
[1764082013228,17.6742987,134.42,134.37,2.60533913]
[1764082013543,6.14492956,134.39,134.37,2.60533913]
[1764082013746,0.66,134.41,134.37,2.60533913]
[1764082013922,6.14492956,134.39,134.37,2.60533913]
[1764082014332,0.66,134.41,134.37,8.75026869]
[1764082014526,7.44102983,134.39,134.37,2.60533913]
[1764082014717,6.14492956,134.39,134.37,2.60533913]
[1764082015058,0.66,134.41,134.37,8.75026869]
[1764082015225,6.14492956,134.4,134.37,2.60533913]
[1764082015418,6.14492956,134.39,134.37,2.60533913]
[1764082015616,9.56492956,134.38,134.37,1.88533913]
[1764082015823,9.56492956,134.38,134.26,0.74482347]
[1764082015824,16.308864,134.35,134.27,0.8]
[1764082016050,3.42,134.34,134.3,6.14492956]
[1764082016538,7.44490768,134.32,134.27,0.1]
[1764082016757,19.27154054,134.33,134.27,0.1]
[1764082016758,0.66,134.33,134.27,0.1]
[1764082016918,8.10457564,134.33,134.27,0.1]
[1764082017331,0.66,134.32,134.27,0.1]
[1764082017540,3.42,134.34,134.27,0.8]
[1764082017924,3.42,134.34,134.32,6.14492956]
[1764082018117,3.42,134.34,134.31,6.14492956]
[1764082018540,3.42,134.34,134.32,7.44490768]
[1764082018845,7.44009293,134.41,134.33,6.14492956]
[1764082019022,3.42,134.4,134.34,0.72]
[1764082019222,3.42,134.4,134.35,6.14492956]
[1764082019624,4.11,134.4,134.35,0.72]
[1764082019822,0.69,134.44,134.36,0.72]
[1764082020019,6.14492956,134.42,134.37,6.14492956]
[1764082020329,6.14492956,134.4,134.34,0.72]
[1764082020528,8.80994492,134.42,134.35,6.14492956]
[1764082020529,6.83492956,134.41,134.35,6.14492956]
[1764082020733,6.14492956,134.4,134.35,6.14492956]
[1764082020929,16.998864,134.4,134.31,0.72]
[1764082021140,10.25492956,134.39,134.33,6.14492956]
[1764082021416,6.14492956,134.38,134.32,6.14492956]
[1764082021622,6.14492956,134.36,134.31,6.14492956]
[1764082021844,6.83492956,134.37,134.31,6.14492956]
[1764082022128,22.45379356,134.38,134.33,6.14492956]
[1764082022323,16.998864,134.38,134.32,6.14492956]
[1764082022536,16.998864,134.38,134.3,0.72]
[1764082022736,30.5858564,134.38,134.33,6.14492956]
[1764082022954,3.42,134.39,134.36,6.14492956]
[1764082023224,3.42,134.39,134.35,6.14492956]
[1764082023649,3.42,134.39,134.31,88.35911696]
[1764082023650,0.69,134.38,134.31,88.35911696]
[1764082023835,3.42,134.39,134.35,6.14492956]
[1764082024031,3.42,134.39,134.36,6.14492956]
[1764082024255,3.42,134.39,134.32,6.86492956]
[1764082024555,0.69,134.45,134.38,6.14492956]
[1764082024724,0.69,134.45,134.41,6.14492956]
[1764082024725,4.11,134.45,134.41,6.14492956]
[1764082024933,3.42,134.45,134.39,26.04360442]
[1764082025134,0.69,134.44,134.37,0.72]
[1764082025350,0.69,134.44,134.38,6.14492956]
[1764082025548,0.69,134.44,134.4,6.14492956]
[1764082025739,3.42,134.45,134.41,6.14492956]
[1764082025963,0.69,134.5,134.44,6.14492956]
[1764082026260,4.11,134.5,134.46,6.14492956]
[1764082026439,6.83492956,134.49,134.44,6.14492956]
[1764082026638,18.44357021,134.46,134.4,9.63362529]
[1764082026833,9.63362529,134.43,134.38,9.63362529]
[1764082027034,9.63362529,134.43,134.37,7.44213738]
[1764082027235,10.32362529,134.42,134.37,9.63362529]
[1764082027537,16.308864,134.43,134.37,0.72]
[1764082027733,16.308864,134.43,134.39,9.63362529]
[1764082027968,9.63362529,134.44,134.38,9.63362529]
[1764082028140,10.32362529,134.43,134.38,9.63362529]
[1764082028339,0.69,134.43,134.39,9.63362529]
[1764082028861,3.42,134.45,134.41,9.63362529]
[1764082029356,3.42,134.45,134.42,9.63362529]
[1764082029763,3.42,134.45,134.44,9.63362529]
[1764082029939,4.11,134.49,134.44,9.63362529]
[1764082030137,4.11,134.49,134.45,9.63362529]
[1764082030356,21.17923001,134.49,134.42,0.72]
[1764082030563,9.63362529,134.48,134.44,9.63362529]
[1764082030744,10.32362529,134.48,134.43,17.07201324]
[1764082030948,10.32362529,134.47,134.43,7.43838795]
[1764082031154,0.69,134.47,134.43,7.43838795]
[1764082031346,9.63362529,134.45,134.37,7.44213738]
[1764082031550,10.32362529,134.46,134.41,9.63362529]
[1764082032058,0.69,134.45,134.38,0.72]
[1764082032255,3.42,134.44,134.4,9.63362529]
[1764082032464,3.42,134.44,134.42,9.63362529]
[1764082032761,0.69,134.43,134.35,0.72]
[1764082033061,3.42,134.48,134.42,9.63362529]
[1764082033242,4.11,134.48,134.43,9.63362529]
[1764082033444,9.63362529,134.46,134.38,0.72]
[1764082033653,9.63362529,134.46,134.36,26.04850092]
[1764082033654,9.63362529,134.46,134.41,9.63362529]
[1764082033845,0.69,134.45,134.41,9.63362529]
[1764082034065,4.11,134.48,134.44,9.63362529]
[1764082034242,10.32362529,134.47,134.42,9.63362529]
[1764082034443,3.42,134.48,134.44,9.63362529]
[1764082034655,4.11,134.48,134.44,9.63362529]
[1764082034857,0.69,134.47,134.44,17.07145293]
[1764082035048,0.69,134.51,134.46,9.63362529]
[1764082035363,3.42,134.52,134.45,0.72]
[1764082035538,3.88798889,134.55,134.46,9.63362529]
[1764082035875,0.69,134.54,134.5,9.63362529]
[1764082036036,13.74362529,134.56,134.47,0.72]
[1764082036240,9.63362529,134.52,134.47,9.63362529]
[1764082036555,8.80994492,134.54,134.48,9.63362529]
[1764082036742,10.32362529,134.54,134.49,9.63362529]
[1764082037061,9.63362529,134.5,134.46,9.63362529]
[1764082037245,13.05362529,134.5,134.45,9.63362529]
[1764082037561,3.42,134.5,134.47,9.63362529]
[1764082037765,3.42,134.5,134.48,9.63362529]
[1764082037962,0.69,134.49,134.44,26.03370064]
[1764082038266,3.42,134.5,134.47,9.63362529]
[1764082038465,0.69,134.53,134.44,63.22501274]
[1764082038786,3.42,134.54,134.51,9.63362529]
[1764082039073,3.42,134.54,134.53,9.63362529]
[1764082039266,0.69,134.56,134.53,9.63362529]
[1764082040083,3.62,134.59,134.55,9.63362529]
[1764082040367,9.63362529,134.56,134.47,23.74546149]
[1764082040676,9.63362529,134.56,134.51,9.63362529]
[1764082040873,17.75580663,134.55,134.47,24.46514579]
[1764082041050,9.63362529,134.52,134.43,0.72]
[1764082041235,9.63362529,134.48,134.39,7.44102983]
[1764082041441,3.42,134.49,134.44,9.63362529]
[1764082041663,3.42,134.49,134.45,9.63362529]
[1764082042061,3.42,134.49,134.47,9.63362529]
[1764082042371,0.69,134.52,134.45,0.72]
[1764082042671,0.69,134.52,134.49,9.63362529]
[1764082042840,8.12389058,134.52,134.49,9.63362529]
[1764082043037,3.42,134.53,134.5,9.63362529]
[1764082043269,10.85331895,134.53,134.49,17.06884408]
[1764082043456,10.30362529,134.52,134.48,9.63362529]
[1764082043654,0.67,134.52,134.48,9.63362529]
[1764082043845,13.05362529,134.53,134.46,7.43707694]
[1764082044173,13.05362529,134.53,134.49,9.63362529]
[1764082044174,0.67,134.52,134.49,9.63362529]
[1764082044377,3.42,134.53,134.46,9.63362529]
[1764082044672,3.42,134.53,134.5,9.63362529]
[1764082044841,0.67,134.58,134.52,9.63362529]
[1764082045040,0.67,134.58,134.55,9.63362529]
[1764082045458,3.62,134.59,134.57,9.63362529]
[1764082045645,3.62,134.59,134.58,9.63362529]
[1764082046047,3.62,134.59,134.57,9.63362529]
[1764082046643,0.67,134.58,134.51,16.308864]
[1764082046884,0.67,134.58,134.51,17.028864]
[1764082047069,3.62,134.59,134.57,9.63362529]
[1764082047485,0.67,134.58,134.51,78.608864]
[1764082047695,3.62,134.59,134.57,9.63362529]
[1764082048022,3.62,134.59,134.58,9.63362529]
[1764082048303,3.62,134.59,134.57,9.63362529]
[1764082048463,10.30362529,134.58,134.52,62.3]
[1764082048662,0.67,134.58,134.5,0.72]
[1764082048865,8.10122928,134.57,134.51,9.63362529]
[1764082049086,0.2,134.59,134.55,9.63362529]
[1764082049263,0.2,134.59,134.56,9.63362529]
[1764082049469,0.2,134.59,134.57,9.63362529]
[1764082049679,0.2,134.59,134.58,9.63362529]
[1764082049905,0.2,134.59,134.56,0.72]
[1764082050189,0.87,134.59,134.56,9.63362529]
[1764082050389,8.30001752,134.59,134.47,0.74366029]
[1764082050686,9.63362529,134.54,134.5,9.63362529]
[1764082050890,25.78880892,134.58,134.5,9.63362529]
[1764082050891,3.42,134.53,134.5,9.63362529]
[1764082051073,13.72362529,134.53,134.48,9.63362529]
[1764082051272,13.72362529,134.53,134.44,9.63362529]
[1764082051273,9.63362529,134.49,134.44,9.63362529]
[1764082051481,13.05362529,134.48,134.43,9.63362529]
[1764082051893,10.30362529,134.47,134.42,9.63362529]
[1764082052101,0.67,134.47,134.42,9.63362529]
[1764082052265,0.67,134.46,134.42,9.63362529]
[1764082052683,10.30362529,134.46,134.41,9.63362529]
[1764082052891,7.43770918,134.45,134.41,9.63362529]
[1764082053092,17.74133447,134.45,134.4,9.63362529]
[1764082053294,0.67,134.44,134.4,9.63362529]
[1764082053879,3.42,134.43,134.4,9.63362529]
[1764082054169,9.63362529,134.41,134.3,7.44585067]
[1764082054385,3.42,134.43,134.33,9.63362529]
[1764082054386,9.63362529,134.37,134.33,9.63362529]
[1764082054582,4.09,134.42,134.31,0.72]
[1764082054789,4.09,134.42,134.38,9.63362529]
[1764082054790,13.72362529,134.42,134.38,9.63362529]
[1764082054976,0.67,134.41,134.37,9.63362529]
[1764082055501,0.67,134.41,134.38,9.63362529]
[1764082055877,10.30362529,134.41,134.36,9.63362529]
[1764082056300,10.30362529,134.4,134.35,9.63362529]
[1764082056806,4.09,134.42,134.38,9.63362529]
[1764082057105,0.67,134.46,134.36,0.72]
[1764082057302,12.89994492,134.45,134.37,0.72]
[1764082057505,12.89994492,134.45,134.33,0.72]
[1764082057811,19.11357021,134.44,134.39,9.63362529]
[1764082058112,9.63362529,134.41,134.36,9.63362529]
[1764082058279,9.63362529,134.39,134.34,9.63362529]
[1764082058676,10.30362529,134.38,134.33,9.63362529]
[1764082058894,7.44213738,134.37,134.33,9.63362529]
[1764082059090,8.11213738,134.37,134.29,8.16648776]
[1764082059376,8.11213738,134.37,134.33,9.63362529]
[1764082060003,0.67,134.36,134.33,9.63362529]
[1764082060208,8.11272945,134.36,134.3,0.72]
[1764082060394,26.71945764,134.36,134.31,9.63362529]
[1764082060576,4.09,134.35,134.31,9.63362529]
[1764082060771,9.63362529,134.34,134.29,9.63362529]
[1764082061078,4.09,134.35,134.31,9.63362529]
[1764082061274,4.09,134.35,134.32,9.63362529]
[1764082061706,3.42,134.35,134.32,9.63362529]
[1764082062002,3.42,134.35,134.34,9.63362529]
[1764082062588,4.09,134.35,134.33,9.63362529]
[1764082062802,4.09,134.35,134.32,9.63362529]
[1764082062991,11.53332003,134.35,134.32,9.63362529]
[1764082063297,0.67,134.34,134.3,9.63362529]
[1764082064117,3.42,134.35,134.33,9.63362529]
[1764082064612,11.53331481,134.35,134.32,9.63362529]
[1764082064816,0.67,134.34,134.3,9.63362529]
[1764082065115,0.67,134.34,134.31,9.63362529]
[1764082065291,3.42,134.35,134.32,9.63362529]
[1764082065490,3.42,134.35,134.33,9.63362529]
[1764082065713,3.42,134.35,134.34,9.63362529]
[1764082065919,3.42,134.35,134.33,9.63362529]
[1764082066819,3.42,134.35,134.34,9.63362529]
[1764082066994,3.42,134.38,134.33,7.44420556]
[1764082067192,4.09,134.38,134.34,9.63362529]
[1764082067416,0.67,134.37,134.34,9.63362529]
[1764082067697,18.44357021,134.36,134.28,26.06436162]
[1764082067917,10.30362529,134.37,134.28,26.78436162]
[1764082068107,18.44357021,134.36,134.31,9.63362529]
[1764082068298,7.44324525,134.35,134.31,9.63362529]
[1764082068604,7.44324525,134.35,134.27,35.02712247]
[1764082068605,4.09,134.34,134.3,9.63362529]
[1764082069119,4.09,134.34,134.28,9.63362529]
[1764082069120,0.67,134.33,134.28,9.63362529]
[1764082069416,0.67,134.33,134.27,7.54742226]
[1764082069599,10.30362529,134.33,134.28,9.63362529]
[1764082069799,0.67,134.32,134.29,9.63362529]
[1764082069994,3.42,134.34,134.3,9.63362529]
[1764082070194,4.09,134.34,134.31,9.63362529]
[1764082070393,4.09,134.34,134.3,7.44582376]
[1764082070394,0.67,134.33,134.3,7.44582376]
[1764082070616,0.67,134.33,134.31,9.63362529]
[1764082070998,0.67,134.33,134.29,7.44616799]
[1764082071203,9.63362529,134.3,134.27,0.1]
[1764082071536,18.44357021,134.28,134.16,0.72]
[1764082071740,9.63362529,134.22,134.16,0.72]
[1764082072030,9.63362529,134.22,134.1,12.26768177]
[1764082072031,8.80994492,134.2,134.13,0.72]
[1764082072217,26.08436428,134.18,134.1,2.63405648]
[1764082072522,3.42,134.17,134.11,9.63362529]
[1764082072723,9.63362529,134.15,134.1,2.63405648]
[1764082072899,10.30362529,134.16,134.11,9.63362529]
[1764082073096,9.63362529,134.15,134.1,2.63405648]
[1764082073297,3.42,134.14,134.09,9.63362529]
[1764082073620,3.42,134.13,134.07,9.63362529]
[1764082073792,3.42,134.12,134.1,9.63362529]
[1764082073995,4.08,134.14,134.11,9.63362529]
[1764082074192,4.08,134.14,134.03,26.11355666]
[1764082074421,4.08,134.14,134.09,9.63362529]
[1764082074626,4.08,134.14,134.04,0.68]
[1764082074804,3.42,134.14,134.1,9.63362529]
[1764082075128,3.42,134.14,134.13,9.63362529]
[1764082075331,3.42,134.18,134.13,9.63362529]
[1764082075627,9.63362529,134.17,134.08,16.988864]
[1764082075806,9.63362529,134.15,134.08,16.988864]
[1764082076294,9.63362529,134.15,134.08,0.68]
[1764082076502,9.63362529,134.15,134.08,34.08067402]
[1764082076714,0.66,134.14,134.08,16.308864]
[1764082077023,0.66,134.14,134.08,7.45800645]
[1764082077394,3.42,134.13,134.07,16.308864]
[1764082077923,10.29362529,134.12,134.05,8.13987176]
[1764082078113,12.22994492,134.13,134.07,9.63362529]
[1764082078114,3.42,134.13,134.07,9.63362529]
[1764082078313,8.80994492,134.17,134.1,9.63362529]
[1764082078497,0.66,134.16,134.07,16.308864]
[1764082078697,0.66,134.16,134.09,9.63362529]
[1764082078892,0.66,134.16,134.1,9.63362529]
[1764082079118,21.18639609,134.18,134.11,9.63362529]
[1764082079421,10.35362529,134.17,134.1,0.68]
[1764082079629,9.63362529,134.16,134.09,9.63362529]
[1764082079831,0.72,134.16,134.06,16.308864]
[1764082080006,25.11880892,134.14,134.02,7.46157289]
[1764082080212,3.44,134.13,134.03,0.67]
[1764082080402,3.44,134.13,134.04,7.46045956]
[1764082080403,9.63362529,134.1,134.04,7.46045956]
[1764082080725,9.63362529,134.1,134.03,10.30362529]
[1764082080916,9.63362529,134.11,134.02,16.308864]
[1764082081122,9.63362529,134.07,134.0,9.63362529]
[1764082081312,3.44,134.08,133.99,36.42388832]
[1764082081517,9.63362529,134.07,133.99,36.42388832]
[1764082081709,10.35362529,134.07,134.0,9.63362529]
[1764082082031,9.63362529,134.05,133.98,17.09733601]
[1764082082234,9.63362529,134.05,133.91,3.89649355]
[1764082082528,9.63362529,134.0,133.92,7.46714456]
[1764082082709,0.72,134.04,133.94,9.63362529]
[1764082083031,0.72,134.04,133.92,26.80500596]
[1764082083032,3.89953209,134.15,134.06,16.308864]
[1764082083200,7.45425834,134.16,134.09,9.63362529]
[1764082083201,10.35362529,134.16,134.09,9.63362529]
[1764082083401,10.35362529,134.16,134.06,16.308864]
[1764082083402,0.72,134.15,134.06,16.308864]
[1764082083616,0.72,134.15,134.08,9.63362529]
[1764082083831,0.72,134.15,134.09,9.63362529]
[1764082084040,0.72,134.15,134.07,16.978864]
[1764082084041,4.16,134.19,134.07,0.67]
[1764082084332,0.72,134.19,134.14,7.45489786]
[1764082084533,0.72,134.23,134.17,9.63362529]
[1764082084727,3.89618491,134.28,134.15,16.978864]
[1764082085029,9.63362529,134.22,134.15,10.30362529]
[1764082085338,9.63362529,134.16,134.07,0.67]
[1764082085511,9.63362529,134.18,134.11,9.63362529]
[1764082085700,9.63362529,134.17,134.1,9.63362529]
[1764082085901,9.63362529,134.12,134.03,8.13085522]
[1764082086208,9.63362529,134.11,134.04,9.63362529]
[1764082086412,9.63362529,134.12,134.05,17.09352831]
[1764082086615,0.72,134.14,134.09,9.63362529]
[1764082086915,18.44357021,134.12,134.05,17.09352831]
[1764082087116,9.63362529,134.09,134.02,26.11456902]
[1764082087306,9.63362529,134.08,134.01,17.76570228]
[1764082087507,10.35362529,134.11,134.05,9.63362529]
[1764082087704,0.72,134.11,134.05,9.63362529]
[1764082087908,9.52994492,134.13,134.07,9.63362529]
[1764082088109,19.16357021,134.13,134.07,9.63362529]
[1764082088315,17.09019079,134.11,134.04,9.63362529]
[1764082088529,16.26651042,134.11,134.04,6.18267191]
[1764082088730,6.90267191,134.1,134.04,6.18267191]
[1764082089032,8.80994492,134.09,134.01,42.42629364]
[1764082089223,6.90267191,134.09,134.02,6.18267191]
[1764082089402,6.18267191,134.11,134.04,6.18267191]
[1764082089604,0.72,134.11,134.05,6.18267191]
[1764082090125,0.72,134.14,134.08,6.18267191]
[1764082090329,0.72,134.14,134.09,6.18267191]
[1764082090528,3.44,134.16,134.11,6.18267191]
[1764082090731,6.18267191,134.2,134.14,6.18267191]
[1764082090952,6.18267191,134.18,134.1,23.76598555]
[1764082091109,6.18267191,134.17,134.1,29.94865746]
[1764082091315,0.72,134.19,134.11,6.18267191]
[1764082091539,14.99261683,134.18,134.11,6.18267191]
[1764082091709,0.72,134.19,134.13,6.18267191]
[1764082092105,0.72,134.19,109.62,0.21263112]
[1764082092106,6.18267191,134.11,133.96,7.46491489]
[1764082092432,6.18267191,134.07,133.98,0.67]
[1764082092661,6.18267191,134.05,133.93,0.67]
[1764082092862,0.72,134.07,134.0,6.18267191]
[1764082093036,0.72,134.07,134.02,6.18267191]
[1764082093244,0.72,134.07,134.01,6.18267191]
[1764082093775,6.18267191,134.02,134.0,3.46]
[1764082094071,6.18267191,134.01,134.0,3.46]
[1764082094433,6.18267191,134.01,134.0,4.13]
[1764082094639,6.18267191,134.01,134.0,3.46]
[1764082095064,6.18267191,134.01,134.0,4.13]
[1764082095364,7.46045956,134.04,134.0,4.13]
[1764082095548,6.18267191,134.01,133.94,0.67]
[1764082095747,6.18267191,133.97,133.95,4.13]
[1764082096667,6.90267191,133.96,133.9,0.1]
[1764082096837,6.18267191,133.92,133.9,0.1]
[1764082097038,6.18267191,133.91,133.9,0.1]
[1764082097679,6.90267191,133.91,133.84,2.66171022]
[1764082097967,6.18267191,133.85,133.74,0.67]
[1764082098147,6.18267191,133.84,133.74,0.67]
[1764082098352,0.72,133.89,133.77,16.308864]
[1764082098567,6.18267191,133.81,133.77,16.308864]
[1764082098869,7.47049155,133.86,133.78,0.67]
[1764082099046,6.18267191,133.82,133.78,4.13]
[1764082099249,0.72,133.85,133.78,3.46]
[1764082099648,6.18267191,133.81,133.78,3.46]
[1764082099855,6.18267191,133.81,133.75,0.67]
[1764082100060,6.18267191,133.82,133.76,0.67]
[1764082100262,8.80994492,133.84,133.76,0.67]
[1764082100488,6.18267191,133.81,133.76,8.14605359]
[1764082100651,6.18267191,133.81,133.76,3.46]
[1764082100652,7.47340979,133.81,133.76,3.46]
[1764082100854,6.18267191,133.81,133.77,0.67]
[1764082101053,6.18267191,133.8,133.77,0.67]
[1764082101357,6.18267191,133.83,133.77,4.13]
[1764082101661,6.18267191,133.8,133.77,19.768864]
[1764082102053,0.72,133.84,133.77,16.308864]
[1764082102354,6.18267191,133.8,133.77,3.46]
[1764082102556,6.18267191,133.82,133.78,0.67]
[1764082102761,0.72,133.86,133.78,0.67]
[1764082102977,8.80994492,133.85,133.75,0.67]
[1764082103180,8.80994492,133.85,133.7,26.17801046]
[1764082103484,8.80994492,133.81,133.69,0.71]
[1764082103654,8.80994492,133.81,133.66,0.71]
[1764082103655,6.18267191,133.76,133.66,0.71]
[1764082103859,6.18267191,133.71,133.66,0.71]
[1764082104087,6.18267191,133.76,133.58,103.90119855]
[1764082104299,6.18267191,133.68,133.59,11.67559023]
[1764082104511,6.18267191,133.68,133.6,0.71]
[1764082104793,6.18267191,133.68,133.65,16.308864]
[1764082105000,8.80994492,133.75,133.61,26.90564403]
[1764082105281,47.01068764,133.84,133.62,4.19]
[1764082105282,6.18267191,133.73,133.62,4.19]
[1764082105491,9.51994492,133.79,133.63,3.48]
[1764082105661,8.80994492,133.77,133.63,0.71]
[1764082105862,8.80994492,133.77,133.64,4.19]
[1764082106064,0.71,133.79,133.65,8.80994492]
[1764082106275,0.71,133.78,133.65,0.71]
[1764082106488,0.71,133.78,133.67,26.18388568]
[1764082106785,0.71,133.78,133.68,3.48]
[1764082106983,6.89267191,133.78,133.68,4.19]
[1764082107187,6.18267191,133.76,133.69,3.48]
[1764082107374,6.18267191,133.76,133.68,0.71]
[1764082107375,6.18267191,133.76,133.7,3.48]
[1764082107590,0.71,133.77,133.71,6.18267191]
[1764082107792,0.71,133.77,133.7,3.48]
[1764082107996,0.71,133.77,133.7,9.66267191]
[1764082108195,6.18267191,133.76,133.71,3.48]
[1764082108397,6.18267191,133.75,133.69,0.71]
[1764082108604,6.18267191,133.75,133.67,3.48]
[1764082108605,6.18267191,133.72,133.67,3.48]
[1764082108905,6.18267191,133.74,133.68,6.18267191]
[1764082109109,0.71,133.74,133.69,6.18267191]
[1764082109313,0.71,133.76,133.67,0.71]
[1764082109614,0.71,133.76,133.7,6.18267191]
[1764082109905,16.308864,133.78,133.68,3.48]
[1764082109906,0.71,133.78,133.72,6.18267191]
[1764082110209,0.71,133.78,133.71,3.48]
[1764082110388,6.89267191,133.78,133.72,6.18267191]
[1764082110580,8.80994492,133.82,133.74,6.18267191]
[1764082110782,0.71,133.81,133.76,6.18267191]
[1764082111114,6.18267191,133.84,133.78,6.18267191]
[1764082111415,6.18267191,133.85,133.8,6.18267191]
[1764082111713,6.18267191,133.85,133.78,3.48]
[1764082111714,6.18267191,133.81,133.73,0.71]
[1764082111896,6.18267191,133.82,133.76,6.18267191]
[1764082112098,8.80994492,133.89,133.76,0.71]
[1764082112293,16.308864,133.86,133.77,9.66267191]
[1764082112494,0.71,133.88,133.79,7.47440017]
[1764082112896,6.18267191,133.86,133.8,0.71]
[1764082113095,6.18267191,133.83,133.79,3.48]
[1764082113300,6.18267191,133.83,133.78,17.13752657]
[1764082113612,0.71,133.87,133.79,6.89267191]
[1764082113920,6.18267191,133.83,133.8,3.48]
[1764082114101,6.18267191,133.84,133.8,3.48]
[1764082114414,0.71,133.86,133.76,0.71]
[1764082114710,6.18267191,133.84,133.78,7.47452239]
[1764082114927,6.18267191,133.84,133.79,6.18267191]
[1764082115206,6.18267191,133.84,133.78,13.6571943]
[1764082115721,6.18267191,133.83,133.79,3.48]
[1764082115893,0.71,133.84,133.79,3.48]
[1764082116098,0.71,133.84,133.65,87.41089406]
[1764082116099,0.71,133.84,133.68,216.1]